fUSD/lending_fUSD_20260605
["ID","MTS","AMOUNT","RATE_DAILY","PERIOD"]
[424157985,1780617047000,-1897.41,0.000294,7]
[424157958,1780617047000,-742.16748949,0.00029188,2]
[424157976,1780617047000,-894.0,0.00029366,30]
[424157969,1780617047000,-2000.0,0.000293,2]
[424157945,1780617047000,-286.4,0.00029105,2]
[424157967,1780617047000,-673.4,0.00029299,7]
[424157981,1780617047000,-3432.0,0.00029376,30]
[424157939,1780617047000,-1036.0,0.00029086,2]
[424157934,1780617047000,-325.17914848,0.00029084,2]
[424157940,1780617047000,-616.0,0.00029086,2]
[424157941,1780617047000,-402.0,0.00029101,2]
[424157933,1780617047000,-286.4,0.00029074,30]
[424157932,1780617047000,-286.38,0.00029074,30]
[424157936,1780617047000,-301.83475163,0.00029085,2]
[424157937,1780617047000,-362.97688792,0.00029085,2]
[424157935,1780617047000,-346.53149724,0.00029085,2]
[424157938,1780617047000,-151.0,0.00029085,7]
[424157942,1780617047000,-1327.0,0.00029102,2]
[424157946,1780617047000,-300.86756511,0.0002913,7]
[424157944,1780617047000,-286.38,0.00029105,2]
[424157950,1780617047000,-972.08,0.00029132,30]
[424157951,1780617047000,-673.4,0.00029132,30]
[424157947,1780617047000,-972.27,0.00029132,30]
[424157948,1780617047000,-1017.05,0.00029132,30]
[424157949,1780617047000,-673.47,0.00029132,30]
[424157943,1780617047000,-1343.0,0.00029102,2]
[424157952,1780617047000,-286.38,0.00029137,7]
[424157954,1780617047000,-1016.83,0.00029152,7]
[424157955,1780617047000,-176.0,0.0002916,2]
[424157953,1780617047000,-286.4,0.00029137,7]
[424157957,1780617047000,-286.4,0.00029169,30]
[424157968,1780617047000,-1179.31,0.000293,7]
[424157988,1780617047000,-400.0,0.00029496,2]
[424158018,1780617047000,-1500.0,0.00029534,15]
[424157984,1780617047000,-514.0,0.00029377,30]
[424158016,1780617047000,-151.0,0.00029532,7]
[424158024,1780617047000,-1500.0,0.00029534,15]
[424158022,1780617047000,-1500.0,0.00029534,15]
[424158023,1780617047000,-1500.0,0.00029534,15]
[424158021,1780617047000,-1500.0,0.00029534,15]
[424158019,1780617047000,-1500.0,0.00029534,15]
[424158042,1780617047000,-186.04151345,0.00029873,2]
[424158027,1780617047000,-1048.98020968,0.00029534,5]
[424158020,1780617047000,-1500.0,0.00029534,15]
[424158026,1780617047000,-150.0,0.00029534,2]
[424158025,1780617047000,-1786.246574,0.00029534,15]
[424158028,1780617047000,-1140.05893924,0.00029534,5]
[424158030,1780617047000,-1136.74456127,0.00029534,5]
[424158040,1780617047000,-2309.6990007,0.00029666,2]
[424158031,1780617047000,-1130.47461155,0.00029534,5]
[424158032,1780617047000,-1064.14775733,0.00029534,5]
[424158033,1780617047000,-1132.92960684,0.00029534,5]
[424158035,1780617047000,-269623.7483136,0.00029584,2]
[424158036,1780617047000,-154.08950807,0.00029596,20]
[424158038,1780617047000,-502.61,0.000296,7]
[424158039,1780617047000,-671.576668,0.00029616,2]
[424158034,1780617047000,-1005.91809769,0.00029534,5]
[424158037,1780617047000,-501.75109673,0.00029596,2]
[424158043,1780617047000,-30457.89040555,0.000299,2]
[424158041,1780617047000,-388616.3768696,0.0002968,2]
[424158017,1780617047000,-1500.0,0.00029534,15]
[424158029,1780617047000,-1064.54461091,0.00029534,5]
[424158014,1780617047000,-1536.04771775,0.00029527,5]
[424158013,1780617047000,-1044.80429667,0.00029527,5]
[424157987,1780617047000,-504.0,0.00029469,4]
[424157986,1780617047000,-238.93663269,0.00029445,2]
[424157992,1780617047000,-400.0,0.00029496,2]
[424158003,1780617047000,-1046.98974815,0.00029527,5]
[424158002,1780617047000,-1019.77084223,0.00029527,5]
[424158001,1780617047000,-1022.27100171,0.00029527,5]
[424157993,1780617047000,-400.0,0.00029496,2]
[424158000,1780617047000,-1002.7194698,0.00029527,5]
[424157996,1780617047000,-400.0,0.00029496,2]
[424157997,1780617047000,-346.0,0.00029496,2]
[424157991,1780617047000,-400.0,0.00029496,2]
[424157999,1780617047000,-1095.33231783,0.00029527,5]
[424157983,1780617047000,-1763.0,0.00029377,30]
[424157998,1780617047000,-1068.82841661,0.00029527,5]
[424158012,1780617047000,-1117.48923912,0.00029527,5]
[424158010,1780617047000,-1058.86591057,0.00029527,5]
[424158009,1780617047000,-1088.2928897,0.00029527,5]
[424158011,1780617047000,-1074.71666401,0.00029527,5]
[424158005,1780617047000,-1082.80294791,0.00029527,5]
[424158007,1780617047000,-1023.73568067,0.00029527,5]
[424158008,1780617047000,-1078.28588628,0.00029527,5]
[424158006,1780617047000,-1051.79537191,0.00029527,5]
[424158004,1780617047000,-1124.89405249,0.00029527,5]
[424157995,1780617047000,-400.0,0.00029496,2]
[424157994,1780617047000,-400.0,0.00029496,2]
[424158015,1780617047000,-151.0,0.00029532,7]
[424158058,1780617048000,-183.69354974,0.00029923,2]
[424158063,1780617048000,-168.21826248,0.00029923,2]
[424158055,1780617048000,-285.72710543,0.00029923,2]
[424158067,1780617048000,-228.9226691,0.00029923,2]
[424158064,1780617048000,-479.49642517,0.00029923,2]
[424158069,1780617048000,-261.58037202,0.00029923,2]
[424158070,1780617048000,-292.4130738,0.00029923,2]
[424158080,1780617048000,-647.41151141,0.0002993,2]
[424158074,1780617048000,-600.78452201,0.00029923,2]
[424158071,1780617048000,-398.88238947,0.00029923,2]
[424158062,1780617048000,-370.22902302,0.00029923,2]
[424158065,1780617048000,-213.88594878,0.00029923,2]
[424158057,1780617048000,-459.50620787,0.00029923,2]
[424158053,1780617048000,-518.57163628,0.00029923,2]
[424158066,1780617048000,-218.15101478,0.00029923,2]
[424158068,1780617048000,-299.79928496,0.00029923,2]
[424158056,1780617048000,-191.54786584,0.00029923,2]
[424158050,1780617048000,-199.98862997,0.00029923,2]
[424158052,1780617048000,-167.97166807,0.00029923,2]
[424158072,1780617048000,-158.59563751,0.00029923,2]
[424158047,1780617048000,-208.39110537,0.00029923,2]
[424158046,1780617048000,-197.42994637,0.00029923,2]
[424158051,1780617048000,-191.29120421,0.00029923,2]
[424158048,1780617048000,-216.37853026,0.00029923,2]
[424158049,1780617048000,-198.17391839,0.00029923,2]
[424158044,1780617048000,-49913.3073098,0.000299,2]
[424158045,1780617048000,-238.93663269,0.00029919,2]
[424158060,1780617048000,-387.75919289,0.00029923,2]
[424158054,1780617048000,-367.34024817,0.00029923,2]
[424158073,1780617048000,-490.23557643,0.00029923,2]
[424158075,1780617048000,-514.11591865,0.00029923,2]
[424158076,1780617048000,-485.61201758,0.00029923,2]
[424158105,1780617048000,-224.34206052,0.00029957,2]
[424158104,1780617048000,-544.46533188,0.00029957,2]
[424158099,1780617048000,-189.75131104,0.00029957,2]
[424158101,1780617048000,-452.75212745,0.00029957,2]
[424158094,1780617048000,-350.0,0.00029956,2]
[424158100,1780617048000,-195.07407734,0.00029957,2]
[424158097,1780617048000,-519.79724586,0.00029957,2]
[424158098,1780617048000,-236.01215028,0.00029957,2]
[424158095,1780617048000,-303.0,0.00029956,2]
[424158096,1780617048000,-487.76872272,0.00029956,2]
[424158103,1780617048000,-196.27532545,0.00029957,2]
[424158092,1780617048000,-350.0,0.00029956,2]
[424158093,1780617048000,-350.0,0.00029956,2]
[424158102,1780617048000,-188.70473514,0.00029957,2]
[424158086,1780617048000,-377.07855466,0.00029932,2]
[424158078,1780617048000,-206.62267958,0.0002993,2]
[424158090,1780617048000,-350.0,0.00029956,2]
[424158079,1780617048000,-315.54734112,0.0002993,2]
[424158081,1780617048000,-155.1405297,0.0002993,2]
[424158084,1780617048000,-164.92393609,0.0002993,2]
[424158083,1780617048000,-552.54777897,0.0002993,2]
[424158077,1780617048000,-317.87348597,0.00029923,2]
[424158089,1780617048000,-350.0,0.00029956,2]
[424158085,1780617048000,-393.85046726,0.00029932,2]
[424158088,1780617048000,-350.0,0.00029956,2]
[424158087,1780617048000,-350.0,0.00029956,2]
[424158091,1780617048000,-350.0,0.00029956,2]
[424158082,1780617048000,-499.49111331,0.0002993,2]
[424158124,1780617049000,-7.75506237,0.0003,2]
[424158120,1780617049000,-1941.91000824,0.0003,3]
[424158128,1780617049000,-2000.0,0.0003,3]
[424158127,1780617049000,-70719.84080136,0.0003,2]
[424158126,1780617049000,-215.73365239,0.00013921,2]
[424158125,1780617049000,-17149.40413627,0.0003,2]
[424158122,1780617049000,-8943.78386462,0.0003,2]
[424158123,1780617049000,-9069.79359915,0.0003,2]
[424158117,1780617049000,-164.220872,0.00015794,2]
[424158109,1780617049000,-12378.14425971,0.0003,5]
[424158116,1780617049000,-500.0,0.00012241,2]
[424158118,1780617049000,-8184.73117895,0.0003,5]
[424158121,1780617049000,-2239.23613269,0.0003,2]
[424158112,1780617049000,-669.60084203,0.0003,5]
[424158111,1780617049000,-11132.99975417,0.0003,5]
[424158110,1780617049000,-1542.98366073,0.0003,5]
[424158108,1780617049000,-61238.03914974,0.0003,5]
[424158106,1780617049000,-226.1410293,0.00029957,2]
[424158107,1780617049000,-241.52866936,0.0002999,2]
[424158130,1780617049000,-1124.73179695,0.0003,2]
[424158119,1780617049000,-4766.0726538,0.0003,5]
[424158141,1780617049000,-173.0,0.0003,14]
[424158135,1780617049000,-4661.38053202,0.0003,24]
[424158129,1780617049000,-11180.83894307,0.0003,2]
[424158154,1780617049000,-1588.43400008,0.0003013,7]
[424158153,1780617049000,-2913452.35913103,0.0003013,7]
[424158152,1780617049000,-302.47256394,0.0003013,2]
[424158147,1780617049000,-151.0,0.00030127,7]
[424158146,1780617049000,-151.0,0.00030127,7]
[424158140,1780617049000,-200.0,0.0003,2]
[424158150,1780617049000,-646.06446933,0.0003013,2]
[424158148,1780617049000,-1094.03985018,0.0003013,2]
[424158149,1780617049000,-14120.52543672,0.0003013,2]
[424158143,1780617049000,-3015.0,0.000301,7]
[424158151,1780617049000,-205.52823685,0.0003013,2]
[424158145,1780617049000,-151.0,0.00030127,7]
[424158142,1780617049000,-1000.0,0.00030082,14]
[424158139,1780617049000,-278.369135,0.0003,7]
[424158136,1780617049000,-9908.01490553,0.0003,14]
[424158133,1780617049000,-1000.0,0.0003,2]
[424158134,1780617049000,-166.0833877,0.0003,2]
[424158132,1780617049000,-897.93931998,0.0003,10]
[424158131,1780617049000,-1851.88994905,0.0003,2]
[424158138,1780617049000,-151.0,0.0003,7]
[424158137,1780617049000,-650.0,0.0003,2]
[424158144,1780617049000,-208.6206848,0.00030111,2]
[424158155,1780617050000,-463.11319434,0.00012789,2]
[424158156,1780617051000,-36.88680566,0.00012789,2]
[424158160,1780617051000,-150.0,0.0002058,2]
[424158158,1780617051000,-598.48288474,0.00020473,2]
[424158161,1780617051000,-213.38801546,0.000273,30]
[424158162,1780617051000,-972.2,0.0002863,30]
[424158163,1780617051000,-673.23,0.0002863,30]
[424158159,1780617051000,-150.0,0.0002058,2]
[424158157,1780617051000,-608.14865937,0.000202,2]
[424158165,1780617051000,-880.43478321,0.00028719,2]
[424158167,1780617051000,-520.15098946,0.00028797,7]
[424158166,1780617051000,-315.35064524,0.00028719,2]
[424158168,1780617051000,-597.39434932,0.0002,2]
[424158169,1780617051000,-174.39803428,0.0002,2]
[424158173,1780617051000,-4.79439627,0.00028871,2]
[424158171,1780617051000,-452.04901054,0.00028797,7]
[424158170,1780617051000,-762.4238043,0.0002,2]
[424158172,1780617051000,-673.23,0.00028797,7]
[424158175,1780617051000,-463.35377226,0.00028871,2]
[424158174,1780617051000,-110.31459828,0.00028871,2]
[424158164,1780617051000,-152.0,0.00028655,7]
[424158176,1780617086000,310.03233745,0.000145,3]
[424158178,1780617271000,163.16,0.00028767,120]
[424158179,1780617390000,-662.0,0.0001008,2]
[424158180,1780617443000,-507.63161687,0.00010079,2]
[424158181,1780617497000,-500.0,0.00010079,2]
[424158182,1780617550000,-167.00723938,0.00010078,2]
[424158184,1780617604000,-1101.47586015,9.978e-05,2]
[424158185,1780617624000,-7862.34678546,9.978e-05,2]
[424158186,1780617626000,1101.47586015,0.00012591,3]
[424158189,1780617677000,-184.30294908,9.978e-05,2]
[424158190,1780617716000,150.0,0.00028767,120]
[424158191,1780617731000,-500.0,0.00010077,2]
[424158193,1780617731000,150.0,0.00028767,120]
[424158192,1780617731000,150.0,0.00028767,120]
[424158194,1780617732000,150.0,0.00028767,120]
[424158196,1780617733000,150.0,0.00028767,120]
[424158195,1780617733000,150.0,0.00028767,120]
[424158198,1780617734000,937.34,0.00027919,120]
[424158197,1780617734000,150.0,0.00028767,120]
[424158199,1780617784000,-223.81613227,0.00010076,2]
[424158200,1780617785000,150.0,0.00028767,120]
[424158201,1780617786000,150.0,0.00028767,120]
[424158202,1780617786000,150.0,0.00028767,120]
[424158203,1780617787000,150.0,0.00028767,120]
[424158205,1780617837000,-150.0,0.00010075,2]
[424158206,1780618140000,2000.0,0.00030135,120]
[424158208,1780618231000,-199.23683918,0.00010072,2]
[424158207,1780618231000,-1200.0,0.00010072,2]
[424158210,1780618232000,-300.0,0.00010072,2]
[424158209,1780618232000,-100.76316082,0.00010072,2]
[424158212,1780618232000,-23.68,0.00010073,2]
[424158211,1780618232000,-126.32,0.00010073,2]
[424158213,1780618232000,-500.0,0.00010073,2]
[424158217,1780618232000,-295.04705474,0.00010073,2]
[424158215,1780618232000,-111.95294526,0.00010073,2]
[424158214,1780618232000,-388.04705474,0.00010073,2]
[424158245,1780618238000,-204.95294526,0.00010073,2]
[424158246,1780618238000,-500.0,0.00010073,2]
[424158247,1780618238000,-500.0,0.00010073,2]
[424158249,1780618238000,-500.0,0.00010073,2]
[424158259,1780618238000,-420.0,0.00011078,2]
[424158260,1780618238000,-1680.0,0.00011079,2]
[424158248,1780618238000,-500.0,0.00010073,2]
[424158251,1780618238000,-500.0,0.00010073,2]
[424158250,1780618238000,-500.0,0.00010073,2]
[424158255,1780618238000,-215.73365239,0.00010358,2]
[424158253,1780618238000,-250.0,0.00010204,2]
[424158262,1780618238000,-250.0,0.00011081,2]
[424158261,1780618238000,-255.0,0.0001108,2]
[424158256,1780618238000,-400.0,0.00010461,2]
[424158263,1780618238000,-4358.82907845,0.00011081,2]
[424158254,1780618238000,-160.0,0.00010358,2]
[424158257,1780618238000,-511.27583754,0.00010461,2]
[424158252,1780618238000,-250.0,0.00010074,2]
[424158258,1780618238000,-400.0,0.00010461,2]
[424158282,1780618240000,-222.54706224,0.00012592,2]
[424158287,1780618240000,-1435453.20393713,0.00012592,2]
[424158285,1780618240000,-457.68897758,0.00012592,2]
[424158284,1780618240000,-9077.54866152,0.00012592,2]
[424158278,1780618240000,-200.52078006,0.00012592,2]
[424158281,1780618240000,-4216.86584389,0.00012592,2]
[424158277,1780618240000,-150.0,0.00012591,2]
[424158275,1780618240000,-164.93,0.00012344,2]
[424158279,1780618240000,-241.12008044,0.00012592,2]
[424158289,1780618240000,-2000.0,0.00012692,2]
[424158280,1780618240000,-4730.35295084,0.00012592,2]
[424158276,1780618240000,-151.0,0.00012589,2]
[424158283,1780618240000,-8721.23680238,0.00012592,2]
[424158272,1780618240000,-1000.0,0.00012069,2]
[424158273,1780618240000,-2351.0,0.00012187,2]
[424158271,1780618240000,-299.99,0.00011083,2]
[424158270,1780618240000,-3193.17031845,0.00011081,2]
[424158269,1780618240000,-2406.1406031,0.00011081,2]
[424158274,1780618240000,-433.0,0.00012188,2]
[424158286,1780618240000,-46290.32162139,0.00012592,2]
[424158301,1780618240000,-500.0,0.00013698,2]
[424158291,1780618240000,-357.6,0.00012987,2]
[424158310,1780618240000,-500.0,0.00013698,2]
[424158288,1780618240000,-33250.5141,0.00012692,2]
[424158308,1780618240000,-500.0,0.00013698,2]
[424158311,1780618240000,-500.0,0.00013698,2]
[424158309,1780618240000,-500.0,0.00013698,2]
[424158307,1780618240000,-500.0,0.00013698,2]
[424158306,1780618240000,-347.17711318,0.00013698,2]
[424158298,1780618240000,-3292.0,0.00013406,2]
[424158299,1780618240000,-736.0,0.00013407,2]
[424158312,1780618240000,-500.0,0.00013698,2]
[424158296,1780618240000,-250.0,0.0001331,2]
[424158293,1780618240000,-2000.0,0.00013148,2]
[424158292,1780618240000,-314.86,0.00012987,2]
[424158294,1780618240000,-246.46,0.0001326,2]
[424158302,1780618240000,-500.0,0.00013698,2]
[424158305,1780618240000,-338.87344356,0.00013698,2]
[424158290,1780618240000,-150.0,0.00012826,2]
[424158303,1780618240000,-500.0,0.00013698,2]
[424158300,1780618240000,-500.0,0.00013698,2]
[424158361,1780618241000,-1252.0,0.00014747,2]
[424158351,1780618241000,-400.0,0.000147,7]
[424158355,1780618241000,-259.64362094,0.000147,7]
[424158343,1780618241000,-152.06444735,0.00013698,2]
[424158342,1780618241000,-500.0,0.00013698,2]
[424158350,1780618241000,-166.66,0.00014696,2]
[424158345,1780618241000,-1048.99843783,0.0001399,2]
[424158344,1780618241000,-200.0,0.00013699,2]
[424158346,1780618241000,-166.66,0.00014102,2]
[424158349,1780618241000,-1500.0,0.00014606,2]
[424158360,1780618241000,-4609.0,0.00014746,2]
[424158354,1780618241000,-400.0,0.000147,7]
[424158364,1780618241000,-1555.5,0.00015154,2]
[424158352,1780618241000,-400.0,0.000147,7]
[424158356,1780618241000,-400.0,0.000147,7]
[424158358,1780618241000,-400.0,0.000147,7]
[424158357,1780618241000,-400.0,0.000147,7]
[424158359,1780618241000,-4439.41290606,0.00014737,2]
[424158373,1780618241000,-1083.75,0.00015594,2]
[424158363,1780618241000,-166.66,0.00014993,2]
[424158341,1780618241000,-500.0,0.00013698,2]
[424158362,1780618241000,-2000.0,0.00014792,2]
[424158368,1780618241000,-164.93,0.0001543,2]
[424158369,1780618241000,-150.0,0.00015494,2]
[424158365,1780618241000,-166.66,0.0001529,2]
[424158371,1780618241000,-277.75388502,0.00015494,2]
[424158353,1780618241000,-400.0,0.000147,7]
[424158347,1780618241000,-166.66,0.00014399,2]
[424158327,1780618241000,-500.0,0.00013698,2]
[424158348,1780618241000,-937.34,0.00014604,2]
[424158366,1780618241000,-1414.84,0.0001531,2]
[424158317,1780618241000,-500.0,0.00013698,2]
[424158318,1780618241000,-500.0,0.00013698,2]
[424158313,1780618241000,-500.0,0.00013698,2]
[424158315,1780618241000,-500.0,0.00013698,2]
[424158314,1780618241000,-500.0,0.00013698,2]
[424158316,1780618241000,-500.0,0.00013698,2]
[424158320,1780618241000,-500.0,0.00013698,2]
[424158319,1780618241000,-500.0,0.00013698,2]
[424158323,1780618241000,-500.0,0.00013698,2]
[424158324,1780618241000,-336.66,0.00013698,2]
[424158321,1780618241000,-500.0,0.00013698,2]
[424158338,1780618241000,-500.0,0.00013698,2]
[424158322,1780618241000,-500.0,0.00013698,2]
[424158326,1780618241000,-500.0,0.00013698,2]
[424158335,1780618241000,-500.0,0.00013698,2]
[424158325,1780618241000,-500.0,0.00013698,2]
[424158336,1780618241000,-183.5963086,0.00013698,2]
[424158330,1780618241000,-500.0,0.00013698,2]
[424158331,1780618241000,-500.0,0.00013698,2]
[424158332,1780618241000,-500.0,0.00013698,2]
[424158329,1780618241000,-500.0,0.00013698,2]
[424158333,1780618241000,-500.0,0.00013698,2]
[424158337,1780618241000,-500.0,0.00013698,2]
[424158339,1780618241000,-500.0,0.00013698,2]
[424158340,1780618241000,-500.0,0.00013698,2]
[424158334,1780618241000,-500.0,0.00013698,2]
[424158367,1780618241000,-9999.99,0.0001531,2]
[424158328,1780618241000,-500.0,0.00013698,2]
[424158370,1780618241000,-150.0,0.00015494,2]
[424158403,1780618241000,-1798.80895522,0.00017346,2]
[424158404,1780618241000,-166.66,0.00017682,2]
[424158401,1780618241000,-1083.75,0.00017154,2]
[424158413,1780618241000,-1934.38338736,0.00018442,2]
[424158412,1780618241000,-4221.2,0.0001841,2]
[424158407,1780618241000,-1681.0,0.00017849,2]
[424158409,1780618241000,-1865.36488656,0.00017894,2]
[424158415,1780618241000,-166.66,0.00018812,2]
[424158425,1780618241000,-151.0,0.00019538,2]
[424158414,1780618241000,-164.93,0.00018516,2]
[424158420,1780618241000,-151.0,0.00019538,2]
[424158416,1780618241000,-2005.9555727,0.0001899,2]
[424158410,1780618241000,-2000.0,0.00018079,2]
[424158418,1780618241000,-166.66,0.00019377,2]
[424158417,1780618241000,-937.34,0.00019043,2]
[424158421,1780618241000,-151.0,0.00019538,2]
[424158422,1780618241000,-151.0,0.00019538,2]
[424158423,1780618241000,-200.0,0.00019538,2]
[424158424,1780618241000,-151.0,0.00019538,2]
[424158419,1780618241000,-4971.47303121,0.00019489,2]
[424158428,1780618241000,-151.0,0.00019538,2]
[424158427,1780618241000,-151.0,0.00019538,2]
[424158429,1780618241000,-151.0,0.00019538,2]
[424158432,1780618241000,-500.0,0.00019538,2]
[424158430,1780618241000,-151.0,0.00019538,2]
[424158431,1780618241000,-151.0,0.00019538,2]
[424158426,1780618241000,-151.0,0.00019538,2]
[424158405,1780618241000,-9035.0,0.00017843,2]
[424158372,1780618241000,-166.66,0.00015587,2]
[424158402,1780618241000,-34487.47,0.00017219,2]
[424158411,1780618241000,-166.66,0.00018247,2]
[424158374,1780618241000,-1613.0535,0.00015702,2]
[424158375,1780618241000,-1083.75,0.00015984,2]
[424158382,1780618241000,-860.1,0.00016169,2]
[424158383,1780618241000,-860.1,0.00016169,2]
[424158377,1780618241000,-4971.47303121,0.0001604,2]
[424158376,1780618241000,-538.68867808,0.00016,2]
[424158384,1780618241000,-860.1,0.00016171,2]
[424158379,1780618241000,-9999.99,0.00016116,2]
[424158378,1780618241000,-538.68867808,0.000161,2]
[424158380,1780618241000,-860.1,0.00016165,2]
[424158381,1780618241000,-860.1,0.00016167,2]
[424158387,1780618241000,-860.1,0.00016173,2]
[424158385,1780618241000,-860.1,0.00016171,2]
[424158396,1780618241000,-2000.0,0.00016435,2]
[424158395,1780618241000,-1083.75,0.00016374,2]
[424158399,1780618241000,-200.52078001,0.00016805,2]
[424158394,1780618241000,-500.0,0.00016337,2]
[424158393,1780618241000,-500.0,0.00016337,2]
[424158391,1780618241000,-1672.7364795,0.0001625,2]
[424158390,1780618241000,-2129.0,0.00016228,2]
[424158392,1780618241000,-500.0,0.00016337,2]
[424158400,1780618241000,-166.66,0.00017117,2]
[424158388,1780618241000,-538.68867808,0.000162,2]
[424158397,1780618241000,-1083.75,0.00016764,2]
[424158389,1780618241000,-6453.0,0.00016221,2]
[424158386,1780618241000,-860.06,0.00016173,2]
[424158398,1780618241000,-1734.62772924,0.00016798,2]
[424158470,1780618242000,-154.56295114,0.000199,3]
[424158471,1780618242000,-166.66,0.00019942,2]
[424158473,1780618242000,-1100.0,0.00019978,2]
[424158475,1780618242000,-458.0,0.0002,2]
[424158466,1780618242000,-272.796375,0.000196,2]
[424158474,1780618242000,-1500.0,0.00019978,7]
[424158468,1780618242000,-12649.0,0.00019627,2]
[424158477,1780618242000,-299.0,0.0002,2]
[424158472,1780618242000,-2500.0,0.00019978,2]
[424158476,1780618242000,-684.0,0.0002,2]
[424158469,1780618242000,-2000.0,0.00019722,2]
[424158467,1780618242000,-186.094154,0.000196,2]
[424158480,1780618242000,-357.0,0.0002,2]
[424158494,1780618242000,-173507.29,0.0002,2]
[424158479,1780618242000,-614.0,0.0002,2]
[424158490,1780618242000,-391.0,0.0002,2]
[424158492,1780618242000,-1197.057938,0.0002,2]
[424158488,1780618242000,-176.31671628,0.0002,2]
[424158485,1780618242000,-176.31671627,0.0002,2]
[424158486,1780618242000,-176.31671627,0.0002,2]
[424158481,1780618242000,-152.0,0.0002,2]
[424158483,1780618242000,-581.0,0.0002,2]
[424158482,1780618242000,-2450.0,0.0002,2]
[424158487,1780618242000,-176.31671627,0.0002,2]
[424158484,1780618242000,-176.31671627,0.0002,2]
[424158489,1780618242000,-3089.0,0.0002,2]
[424158478,1780618242000,-1560.0,0.0002,2]
[424158495,1780618242000,-3325.0,0.0002,2]
[424158491,1780618242000,-1763.0,0.0002,2]
[424158460,1780618242000,-500.0,0.00019538,2]
[424158451,1780618242000,-151.0,0.00019538,2]
[424158461,1780618242000,-151.0,0.00019538,2]
[424158438,1780618242000,-500.0,0.00019538,2]
[424158439,1780618242000,-151.0,0.00019538,2]
[424158493,1780618242000,-514.0,0.0002,2]
[424158433,1780618242000,-151.0,0.00019538,2]
[424158434,1780618242000,-2080.17592889,0.00019538,2]
[424158436,1780618242000,-151.0,0.00019538,2]
[424158435,1780618242000,-500.0,0.00019538,2]
[424158442,1780618242000,-151.0,0.00019538,2]
[424158440,1780618242000,-151.0,0.00019538,2]
[424158448,1780618242000,-151.0,0.00019538,2]
[424158450,1780618242000,-500.0,0.00019538,2]
[424158441,1780618242000,-500.0,0.00019538,2]
[424158443,1780618242000,-151.0,0.00019538,2]
[424158444,1780618242000,-500.0,0.00019538,2]
[424158445,1780618242000,-151.0,0.00019538,2]
[424158452,1780618242000,-151.0,0.00019538,2]
[424158447,1780618242000,-500.0,0.00019538,2]
[424158446,1780618242000,-151.0,0.00019538,2]
[424158449,1780618242000,-151.0,0.00019538,2]
[424158464,1780618242000,-151.0,0.00019538,2]
[424158454,1780618242000,-500.0,0.00019538,2]
[424158457,1780618242000,-151.0,0.00019538,2]
[424158453,1780618242000,-151.0,0.00019538,2]
[424158462,1780618242000,-151.0,0.00019538,2]
[424158465,1780618242000,-500.0,0.00019542,2]
[424158455,1780618242000,-151.0,0.00019538,2]
[424158463,1780618242000,-151.0,0.00019538,2]
[424158456,1780618242000,-500.0,0.00019538,2]
[424158458,1780618242000,-500.0,0.00019538,2]
[424158459,1780618242000,-151.0,0.00019538,2]
[424158437,1780618242000,-151.0,0.00019538,2]
[424158503,1780618242000,-150.0,0.0002058,2]
[424158498,1780618242000,-2157.14243826,0.00020086,2]
[424158538,1780618242000,-859.42,0.00021567,2]
[424158540,1780618242000,-200.0,0.0002173,2]
[424158539,1780618242000,-17709.0,0.0002159,2]
[424158544,1780618242000,-5000.0,0.00021918,2]